[Event "Early-Titled-Tuesday-Blitz-February-13-2024"]
[Site "Chess.com"]
[Date "2024.02.13"]
[Round "4"]
[White "newyorkmouse"]
[Black "KuzubovYuriy"]
[Result "0-1"]
[WhiteElo "2663"]
[BlackElo "2926"]
[TimeControl "180+1"]
[EndTime "8:42:44 PST"]
[Termination "KuzubovYuriy won by resignation"]

1. Nf3 {[%clk 0:03:00.9]} 1... d5 {[%clk 0:02:59.8]} 2. c4 {[%clk 0:03:00.5]}
2... d4 {[%clk 0:02:59.8]} 3. e3 {[%clk 0:03:00.8]} 3... dxe3 {[%clk 0:02:59.4]}
4. fxe3 {[%clk 0:03:00.7]} 4... g6 {[%clk 0:02:58.7]} 5. d4 {[%clk 0:03:00.4]}
5... Bg7 {[%clk 0:02:59.1]} 6. Nc3 {[%clk 0:03:00.4]} 6... c5 {[%clk 0:02:58.3]}
7. h3 {[%clk 0:02:55.9]} 7... Qc7 {[%clk 0:02:43.6]} 8. Kf2 {[%clk 0:02:50.5]}
8... Nf6 {[%clk 0:02:34.4]} 9. Be2 {[%clk 0:02:43.8]} 9... O-O {[%clk
0:02:22.2]} 10. Re1 {[%clk 0:02:34.8]} 10... Nbd7 {[%clk 0:02:20.3]} 11. d5
{[%clk 0:02:27.8]} 11... Nh5 {[%clk 0:02:12.3]} 12. Kg1 {[%clk 0:02:24.4]} 12...
Nb6 {[%clk 0:02:02.5]} 13. Qc2 {[%clk 0:02:13.2]} 13... Bxh3 {[%clk 0:01:54.2]}
14. gxh3 {[%clk 0:02:06.4]} 14... Qg3+ {[%clk 0:01:52.8]} 15. Kf1 {[%clk
0:02:06.4]} 15... Qxh3+ {[%clk 0:01:51.4]} 16. Kf2 {[%clk 0:02:05.5]} 16... Qg3+
{[%clk 0:01:46.3]} 17. Kf1 {[%clk 0:02:04.6]} 17... Nf6 {[%clk 0:01:37.7]} 18.
Bd1 {[%clk 0:01:56.1]} 18... Nxc4 {[%clk 0:01:32.9]} 19. Qh2 {[%clk 0:01:55.6]}
19... Qxh2 {[%clk 0:01:24.5]} 20. Nxh2 {[%clk 0:01:55.3]} 20... Nd7 {[%clk
0:01:20.5]} 21. Nf3 {[%clk 0:01:53.9]} 21... a6 {[%clk 0:01:17]} 22. a4 {[%clk
0:01:51.4]} 22... h6 {[%clk 0:01:12.5]} 23. e4 {[%clk 0:01:45.8]} 23... g5
{[%clk 0:01:04.7]} 24. Be2 {[%clk 0:01:34.5]} 24... Nd6 {[%clk 0:00:54.8]} 25.
Bd3 {[%clk 0:01:31.1]} 25... c4 {[%clk 0:00:50.6]} 26. Bc2 {[%clk 0:01:31]}
26... Ne5 {[%clk 0:00:47.1]} 27. Kg2 {[%clk 0:01:29.4]} 27... b5 {[%clk
0:00:42.1]} 28. Re2 {[%clk 0:01:14.1]} 28... b4 {[%clk 0:00:41.1]} 29. Nd1
{[%clk 0:01:14.3]} 29... Rab8 {[%clk 0:00:38.4]} 30. Nd4 {[%clk 0:01:09.1]}
30... Rfc8 {[%clk 0:00:33.3]} 31. Ne3 {[%clk 0:01:05.2]} 31... b3 {[%clk
0:00:32.8]} 32. Bb1 {[%clk 0:01:04.8]} 32... Nd3 {[%clk 0:00:23.1]} 33. Nc6
{[%clk 0:00:32.2]} 33... Nxc1 {[%clk 0:00:19.9]} 34. Re1 {[%clk 0:00:30.7]}
34... Bxb2 {[%clk 0:00:19]} 35. Nxe7+ {[%clk 0:00:30.4]} 35... Kf8 {[%clk
0:00:19.4]} 36. Nxc8 {[%clk 0:00:30.9]} 36... Rxc8 {[%clk 0:00:20]} 37. a5
{[%clk 0:00:23.6]} 37... Bxa1 {[%clk 0:00:20.1]} 38. Rxc1 {[%clk 0:00:20.9]}
38... c3 {[%clk 0:00:19.3]} 39. Nf5 {[%clk 0:00:18.8]} 39... Nxf5 {[%clk
0:00:19.3]} 40. exf5 {[%clk 0:00:19.7]} 40... c2 {[%clk 0:00:19.7]} 41. Bxc2
{[%clk 0:00:19.2]} 41... Rxc2+ {[%clk 0:00:19.3]} 0-1

[Event "Early-Titled-Tuesday-Blitz-February-13-2024"]
[Site "Chess.com"]
[Date "2024.02.13"]
[Round "4"]
[White "Gabrielian_Artur"]
[Black "ViIIagra"]
[Result "0-1"]
[WhiteElo "2789"]
[BlackElo "2965"]
[TimeControl "180+1"]
[EndTime "8:42:45 PST"]
[Termination "ViIIagra won on time"]

1. e4 {[%clk 0:03:00.9]} 1... d6 {[%clk 0:03:00.9]} 2. d4 {[%clk 0:03:00.4]}
2... Nf6 {[%clk 0:03:01.4]} 3. Nc3 {[%clk 0:03:00.1]} 3... e5 {[%clk 0:03:02.2]}
4. Nf3 {[%clk 0:02:59.9]} 4... Nbd7 {[%clk 0:03:03]} 5. Bc4 {[%clk 0:02:59.7]}
5... Be7 {[%clk 0:03:03.8]} 6. O-O {[%clk 0:02:59.7]} 6... O-O {[%clk
0:03:04.5]} 7. a4 {[%clk 0:02:58.3]} 7... c6 {[%clk 0:03:04.6]} 8. Re1 {[%clk
0:02:55.5]} 8... h6 {[%clk 0:03:04.7]} 9. h3 {[%clk 0:02:53.8]} 9... Re8 {[%clk
0:03:05.1]} 10. a5 {[%clk 0:02:48.7]} 10... exd4 {[%clk 0:03:00.8]} 11. Qxd4
{[%clk 0:02:47.1]} 11... Nc5 {[%clk 0:02:48.8]} 12. Bf4 {[%clk 0:02:45.6]} 12...
Ne6 {[%clk 0:02:42.4]} 13. Bxe6 {[%clk 0:02:45]} 13... Bxe6 {[%clk 0:02:43.3]}
14. a6 {[%clk 0:02:28.2]} 14... b6 {[%clk 0:02:40.3]} 15. Rad1 {[%clk
0:02:24.4]} 15... d5 {[%clk 0:02:40.6]} 16. Qa4 {[%clk 0:01:54.3]} 16... b5
{[%clk 0:02:39]} 17. Qd4 {[%clk 0:01:28.7]} 17... dxe4 {[%clk 0:02:31.8]} 18.
Nxe4 {[%clk 0:01:24.5]} 18... Qb6 {[%clk 0:02:07.9]} 19. Nxf6+ {[%clk
0:01:04.7]} 19... Bxf6 {[%clk 0:02:06.5]} 20. Be5 {[%clk 0:01:04.9]} 20... Bxe5
{[%clk 0:01:48.5]} 21. Qxb6 {[%clk 0:00:58.5]} 21... axb6 {[%clk 0:01:45.9]} 22.
Nxe5 {[%clk 0:00:58.6]} 22... c5 {[%clk 0:01:45.1]} 23. Rd6 {[%clk 0:00:49.1]}
23... Rxa6 {[%clk 0:01:38.8]} 24. Nd3 {[%clk 0:00:49]} 24... Rea8 {[%clk
0:01:32.7]} 25. Nf4 {[%clk 0:00:48.4]} 25... Bf5 {[%clk 0:01:10.3]} 26. Nd5
{[%clk 0:00:45.4]} 26... Bxc2 {[%clk 0:01:10.6]} 27. Re7 {[%clk 0:00:33.9]}
27... Bb3 {[%clk 0:01:08.8]} 28. Nc7 {[%clk 0:00:22.5]} 28... Ra1+ {[%clk
0:01:08]} 29. Kh2 {[%clk 0:00:22.3]} 29... R8a2 {[%clk 0:01:05.3]} 30. Rxb6
{[%clk 0:00:18.3]} 30... Rxb2 {[%clk 0:01:05.7]} 31. Rxb5 {[%clk 0:00:18.8]}
31... Raa2 {[%clk 0:00:59.8]} 32. Re3 {[%clk 0:00:15.6]} 32... c4 {[%clk
0:00:55.4]} 33. Nd5 {[%clk 0:00:09]} 33... Rxf2 {[%clk 0:00:55]} 34. Rg3 {[%clk
0:00:08.9]} 34... Bc2 {[%clk 0:00:45.4]} 35. Rb8+ {[%clk 0:00:07.9]} 35... Kh7
{[%clk 0:00:45.6]} 36. Re8 {[%clk 0:00:07]} 36... Bg6 {[%clk 0:00:39.6]} 37. Re7
{[%clk 0:00:06.3]} 37... Rae2 {[%clk 0:00:38.5]} 38. Rc7 {[%clk 0:00:05.6]}
38... Be4 {[%clk 0:00:36.4]} 39. Ne3 {[%clk 0:00:05.5]} 39... Rxe3 {[%clk
0:00:36.6]} 0-1

[Event "Early-Titled-Tuesday-Blitz-February-13-2024"]
[Site "Chess.com"]
[Date "2024.02.13"]
[Round "4"]
[White "Harry_Rakkel"]
[Black "Road2GM3000"]
[Result "1-0"]
[WhiteElo "2698"]
[BlackElo "2468"]
[TimeControl "180+1"]
[EndTime "8:42:46 PST"]
[Termination "Harry_Rakkel won on time"]

1. e4 {[%clk 0:03:00.9]} 1... c5 {[%clk 0:02:59.5]} 2. Nf3 {[%clk 0:03:00.4]}
2... d6 {[%clk 0:02:59.9]} 3. d4 {[%clk 0:03:00.4]} 3... cxd4 {[%clk 0:03:00.8]}
4. Nxd4 {[%clk 0:03:00.5]} 4... Nf6 {[%clk 0:03:01.6]} 5. Nc3 {[%clk 0:03:00.6]}
5... a6 {[%clk 0:03:02.3]} 6. h4 {[%clk 0:03:00.4]} 6... e5 {[%clk 0:03:01.3]}
7. Nb3 {[%clk 0:03:00.5]} 7... Be6 {[%clk 0:03:01.9]} 8. f4 {[%clk 0:02:56.9]}
8... exf4 {[%clk 0:02:52.7]} 9. Bxf4 {[%clk 0:02:56.1]} 9... Nc6 {[%clk
0:02:53.4]} 10. Qd2 {[%clk 0:02:49.3]} 10... Be7 {[%clk 0:02:52]} 11. O-O-O
{[%clk 0:02:48.9]} 11... Ne5 {[%clk 0:02:51.5]} 12. Nd4 {[%clk 0:02:42]} 12...
O-O {[%clk 0:02:40]} 13. Nf5 {[%clk 0:01:56.3]} 13... Bxf5 {[%clk 0:02:26.1]}
14. exf5 {[%clk 0:01:55]} 14... Qc7 {[%clk 0:02:17.5]} 15. Nd5 {[%clk
0:01:31.7]} 15... Nxd5 {[%clk 0:02:16.6]} 16. Qxd5 {[%clk 0:01:32.6]} 16... Rac8
{[%clk 0:02:12.6]} 17. Rd2 {[%clk 0:01:32.4]} 17... Rfd8 {[%clk 0:02:07]} 18.
Rh3 {[%clk 0:01:32.8]} 18... Nc4 {[%clk 0:01:49]} 19. Rc3 {[%clk 0:01:14.2]}
19... b5 {[%clk 0:01:39.3]} 20. Bxc4 {[%clk 0:01:14.7]} 20... bxc4 {[%clk
0:01:39.1]} 21. Rd4 {[%clk 0:01:15.4]} 21... Qc5 {[%clk 0:01:01.8]} 22. Qxc5
{[%clk 0:01:12.7]} 22... Rxc5 {[%clk 0:01:01.7]} 23. Rcxc4 {[%clk 0:01:05.2]}
23... Rxf5 {[%clk 0:01:01.3]} 24. g3 {[%clk 0:01:03.7]} 24... g5 {[%clk
0:00:55]} 25. hxg5 {[%clk 0:01:02.7]} 25... Bxg5 {[%clk 0:00:55]} 26. Rc6 {[%clk
0:01:02.2]} 26... Bxf4+ {[%clk 0:00:51.5]} 27. gxf4 {[%clk 0:01:03.1]} 27... a5
{[%clk 0:00:37.9]} 28. Kd2 {[%clk 0:01:02.2]} 28... h5 {[%clk 0:00:36.7]} 29.
Ke3 {[%clk 0:01:02.2]} 29... Rf6 {[%clk 0:00:21.9]} 30. a4 {[%clk 0:01:01.1]}
30... Re8+ {[%clk 0:00:18.4]} 31. Kf3 {[%clk 0:00:59.5]} 31... Rfe6 {[%clk
0:00:18.3]} 32. Rc3 {[%clk 0:00:47.7]} 32... h4 {[%clk 0:00:09.5]} 33. Rd5
{[%clk 0:00:46.5]} 33... Rh6 {[%clk 0:00:07.3]} 34. Rxa5 {[%clk 0:00:41.9]}
34... h3 {[%clk 0:00:07.5]} 35. Rg5+ {[%clk 0:00:42.6]} 35... Kh7 {[%clk
0:00:06.8]} 36. Rg1 {[%clk 0:00:43.3]} 36... h2 {[%clk 0:00:04]} 37. Rh1 {[%clk
0:00:43.5]} 37... Rg8 {[%clk 0:00:04.2]} 38. Kf2 {[%clk 0:00:39.2]} 38... Rg4
{[%clk 0:00:04.3]} 39. Rf3 {[%clk 0:00:39.1]} 39... Rhh4 {[%clk 0:00:03.3]} 40.
a5 {[%clk 0:00:38.2]} 40... Kg7 {[%clk 0:00:01.3]} 41. a6 {[%clk 0:00:36.2]}
41... Kf6 {[%clk 0:00:01.5]} 42. a7 {[%clk 0:00:35.6]} 42... Rg8 {[%clk
0:00:02.2]} 43. Ra3 {[%clk 0:00:33.1]} 43... Rxf4+ {[%clk 0:00:02]} 44. Ke3
{[%clk 0:00:32.9]} 1-0

[Event "Early-Titled-Tuesday-Blitz-February-13-2024"]
[Site "Chess.com"]
[Date "2024.02.13"]
[Round "4"]
[White "chessdjw"]
[Black "Aash20"]
[Result "1-0"]
[WhiteElo "2751"]
[BlackElo "2452"]
[TimeControl "180+1"]
[EndTime "8:42:48 PST"]
[Termination "chessdjw won by checkmate"]

1. e4 {[%clk 0:03:00.9]} 1... c5 {[%clk 0:02:56.8]} 2. Nf3 {[%clk 0:03:00.8]}
2... g6 {[%clk 0:02:55]} 3. d4 {[%clk 0:03:00.4]} 3... cxd4 {[%clk 0:02:54.7]}
4. Nxd4 {[%clk 0:03:01.3]} 4... Nc6 {[%clk 0:02:54.2]} 5. Nc3 {[%clk 0:03:01.3]}
5... Bg7 {[%clk 0:02:53.5]} 6. Be3 {[%clk 0:03:01.9]} 6... Nf6 {[%clk
0:02:53.2]} 7. Bc4 {[%clk 0:03:01.9]} 7... O-O {[%clk 0:02:52.7]} 8. Bb3 {[%clk
0:03:02.5]} 8... a5 {[%clk 0:02:51.7]} 9. a4 {[%clk 0:02:42.2]} 9... d6 {[%clk
0:02:42.4]} 10. O-O {[%clk 0:02:41.2]} 10... Ng4 {[%clk 0:02:34.7]} 11. Nxc6
{[%clk 0:02:37.7]} 11... bxc6 {[%clk 0:02:27.6]} 12. Bf4 {[%clk 0:02:26.7]}
12... Ba6 {[%clk 0:02:05.5]} 13. Qxg4 {[%clk 0:02:23.7]} 13... Bxf1 {[%clk
0:02:02.8]} 14. Rxf1 {[%clk 0:02:24.2]} 14... Qc8 {[%clk 0:01:58.2]} 15. Qe2
{[%clk 0:02:20.8]} 15... Rb8 {[%clk 0:01:50.2]} 16. h4 {[%clk 0:02:18.4]} 16...
h5 {[%clk 0:01:43.7]} 17. Bg5 {[%clk 0:02:18.7]} 17... Re8 {[%clk 0:01:40.7]}
18. Qf3 {[%clk 0:02:17.7]} 18... e6 {[%clk 0:01:38.2]} 19. Bf6 {[%clk
0:02:14.6]} 19... Bxf6 {[%clk 0:01:34]} 20. Qxf6 {[%clk 0:02:15.5]} 20... Qd8
{[%clk 0:01:34.3]} 21. Qf4 {[%clk 0:02:14.1]} 21... d5 {[%clk 0:01:33]} 22. Rd1
{[%clk 0:02:11.9]} 22... Kg7 {[%clk 0:01:31.8]} 23. Ne2 {[%clk 0:01:58.5]} 23...
Qf6 {[%clk 0:01:30.7]} 24. Qxf6+ {[%clk 0:01:34.5]} 24... Kxf6 {[%clk 0:01:30]}
25. Ng3 {[%clk 0:01:26.8]} 25... Ke5 {[%clk 0:01:24.7]} 26. f3 {[%clk
0:01:22.1]} 26... Rb4 {[%clk 0:01:17.6]} 27. Kf2 {[%clk 0:01:20.7]} 27... Reb8
{[%clk 0:01:16.5]} 28. Ne2 {[%clk 0:01:10.3]} 28... Rxb3 {[%clk 0:01:13.3]} 29.
cxb3 {[%clk 0:01:07.6]} 29... Rxb3 {[%clk 0:01:12.9]} 30. Rc1 {[%clk 0:01:03.6]}
30... dxe4 {[%clk 0:01:07.6]} 31. fxe4 {[%clk 0:00:58.8]} 31... Rxb2 {[%clk
0:01:07.2]} 32. Rxc6 {[%clk 0:00:56.9]} 32... Kxe4 {[%clk 0:01:04.9]} 33. Rc4+
{[%clk 0:00:53.8]} 33... Ke5 {[%clk 0:01:01.7]} 34. Rc5+ {[%clk 0:00:52.9]}
34... Kf6 {[%clk 0:01:00.3]} 35. Rxa5 {[%clk 0:00:52]} 35... Rb4 {[%clk
0:00:59.8]} 36. g3 {[%clk 0:00:51.4]} 36... e5 {[%clk 0:00:56.6]} 37. Ra7 {[%clk
0:00:50.6]} 37... Ke6 {[%clk 0:00:53.3]} 38. a5 {[%clk 0:00:46.3]} 38... f5
{[%clk 0:00:49.2]} 39. Ra6+ {[%clk 0:00:44.4]} 39... Kf7 {[%clk 0:00:47.9]} 40.
Rb6 {[%clk 0:00:44.7]} 40... Ra4 {[%clk 0:00:47]} 41. a6 {[%clk 0:00:45.2]}
41... Ra2 {[%clk 0:00:44.4]} 42. Ke3 {[%clk 0:00:44.5]} 42... Ra3+ {[%clk
0:00:42.7]} 43. Kd2 {[%clk 0:00:44.6]} 43... Ra2+ {[%clk 0:00:41]} 44. Kd3
{[%clk 0:00:44.3]} 44... Ra3+ {[%clk 0:00:40.4]} 45. Kc4 {[%clk 0:00:44.5]}
45... Re3 {[%clk 0:00:32.1]} 46. Nc3 {[%clk 0:00:40.7]} 46... Rxg3 {[%clk
0:00:29]} 47. a7 {[%clk 0:00:40]} 47... Rg4+ {[%clk 0:00:28.3]} 48. Kb5 {[%clk
0:00:38.7]} 48... Rxh4 {[%clk 0:00:24.5]} 49. a8=Q {[%clk 0:00:38.7]} 49... Rg4
{[%clk 0:00:24.1]} 50. Qa7+ {[%clk 0:00:38.8]} 50... Kg8 {[%clk 0:00:23.8]} 51.
Rb8# {[%clk 0:00:39.4]} 1-0

[Event "Early-Titled-Tuesday-Blitz-February-13-2024"]
[Site "Chess.com"]
[Date "2024.02.13"]
[Round "4"]
[White "Nellichka"]
[Black "JG-17"]
[Result "0-1"]
[WhiteElo "2067"]
[BlackElo "2472"]
[TimeControl "180+1"]
[EndTime "8:42:48 PST"]
[Termination "JG-17 won on time"]

1. d4 {[%clk 0:03:00.9]} 1... Nf6 {[%clk 0:02:59.3]} 2. c4 {[%clk 0:02:59.8]}
2... d6 {[%clk 0:02:59.1]} 3. Nc3 {[%clk 0:02:57]} 3... e5 {[%clk 0:02:59.1]} 4.
d5 {[%clk 0:02:54.1]} 4... g6 {[%clk 0:02:52.3]} 5. Bg5 {[%clk 0:02:43.2]} 5...
Bg7 {[%clk 0:02:52.2]} 6. e4 {[%clk 0:02:35.6]} 6... Nbd7 {[%clk 0:02:48.4]} 7.
Nge2 {[%clk 0:02:31.1]} 7... h6 {[%clk 0:02:48.3]} 8. Be3 {[%clk 0:02:27.9]}
8... Ng4 {[%clk 0:02:48]} 9. Bd2 {[%clk 0:02:14.6]} 9... Nc5 {[%clk 0:02:43.4]}
10. Nc1 {[%clk 0:02:09.8]} 10... a5 {[%clk 0:02:40.6]} 11. f3 {[%clk 0:02:08.6]}
11... Nf6 {[%clk 0:02:28.1]} 12. Be3 {[%clk 0:02:06.3]} 12... Nh5 {[%clk
0:02:26.8]} 13. Qd2 {[%clk 0:02:01.6]} 13... f5 {[%clk 0:02:25.9]} 14. exf5
{[%clk 0:01:54.3]} 14... gxf5 {[%clk 0:02:25.7]} 15. g3 {[%clk 0:01:49.2]} 15...
f4 {[%clk 0:02:07.3]} 16. Bf2 {[%clk 0:01:38.5]} 16... O-O {[%clk 0:01:59.3]}
17. Nd3 {[%clk 0:01:35.4]} 17... e4 {[%clk 0:01:43.6]} 18. fxe4 {[%clk
0:01:25.6]} 18... Bxc3 {[%clk 0:01:31]} 19. Qxc3 {[%clk 0:01:22.8]} 19... Nxe4
{[%clk 0:01:31.6]} 20. Qc2 {[%clk 0:01:22.1]} 20... Nxf2 {[%clk 0:01:28.8]} 21.
Nxf2 {[%clk 0:01:12.9]} 21... Re8+ {[%clk 0:01:28.7]} 22. Kd2 {[%clk 0:01:00.6]}
22... fxg3 {[%clk 0:01:26.4]} 23. Qg6+ {[%clk 0:00:54.1]} 23... Ng7 {[%clk
0:01:26.9]} 24. Bd3 {[%clk 0:00:47.7]} 24... Qg5+ {[%clk 0:01:15.6]} 25. Qxg5
{[%clk 0:00:47]} 25... hxg5 {[%clk 0:01:16.5]} 26. hxg3 {[%clk 0:00:47.2]} 26...
Bf5 {[%clk 0:01:12.7]} 27. g4 {[%clk 0:00:43.2]} 27... Bxd3 {[%clk 0:01:12]} 28.
Kxd3 {[%clk 0:00:42.9]} 28... Re5 {[%clk 0:01:09.9]} 29. Ne4 {[%clk 0:00:42]}
29... Rae8 {[%clk 0:01:10]} 30. Nf6+ {[%clk 0:00:41.4]} 30... Kf7 {[%clk
0:01:10.7]} 31. Nxe8 {[%clk 0:00:40.1]} 31... Nxe8 {[%clk 0:01:11.2]} 32. Raf1+
{[%clk 0:00:38.8]} 32... Kg6 {[%clk 0:01:08.3]} 33. Rf8 {[%clk 0:00:37.7]} 33...
Nf6 {[%clk 0:01:08]} 34. Rc8 {[%clk 0:00:31.8]} 34... Re7 {[%clk 0:01:04.9]} 35.
Rhh8 {[%clk 0:00:27.1]} 35... Nxg4 {[%clk 0:01:02.6]} 36. Rhe8 {[%clk
0:00:26.5]} 36... Ne5+ {[%clk 0:00:59.7]} 37. Kc3 {[%clk 0:00:25.2]} 37... Rf7
{[%clk 0:00:59.3]} 38. Rg8+ {[%clk 0:00:23]} 38... Kf5 {[%clk 0:00:58.9]} 39.
Rcf8 {[%clk 0:00:21.8]} 39... g4 {[%clk 0:00:54.9]} 40. Rxf7+ {[%clk 0:00:17.7]}
40... Nxf7 {[%clk 0:00:55.8]} 41. Kd3 {[%clk 0:00:17.4]} 41... Ne5+ {[%clk
0:00:54.9]} 42. Kd4 {[%clk 0:00:16.2]} 42... Kf4 {[%clk 0:00:52.6]} 43. b3
{[%clk 0:00:15.4]} 43... g3 {[%clk 0:00:52.7]} 44. Rg7 {[%clk 0:00:10.5]} 44...
Kf3 {[%clk 0:00:51.6]} 45. Rxc7 {[%clk 0:00:09.5]} 45... g2 {[%clk 0:00:52]} 46.
Rf7+ {[%clk 0:00:09.3]} 46... Kg3 {[%clk 0:00:50.1]} 47. Rg7+ {[%clk 0:00:08.6]}
47... Ng4 {[%clk 0:00:50.5]} 0-1

[Event "Early-Titled-Tuesday-Blitz-February-13-2024"]
[Site "Chess.com"]
[Date "2024.02.13"]
[Round "4"]
[White "Mackster23"]
[Black "crazy_m_attack"]
[Result "0-1"]
[WhiteElo "2675"]
[BlackElo "2466"]
[TimeControl "180+1"]
[EndTime "8:42:49 PST"]
[Termination "crazy_m_attack won by resignation"]

1. e4 {[%clk 0:03:00.9]} 1... e5 {[%clk 0:02:59.9]} 2. Nf3 {[%clk 0:03:01.1]}
2... Nc6 {[%clk 0:03:00.4]} 3. Bb5 {[%clk 0:03:00.3]} 3... a6 {[%clk 0:03:00.4]}
4. Ba4 {[%clk 0:03:00.4]} 4... Nf6 {[%clk 0:03:00.8]} 5. O-O {[%clk 0:03:00.3]}
5... Be7 {[%clk 0:03:01]} 6. d3 {[%clk 0:03:00.7]} 6... b5 {[%clk 0:03:01.7]} 7.
Bb3 {[%clk 0:03:01]} 7... O-O {[%clk 0:03:02.2]} 8. Nc3 {[%clk 0:03:00.8]} 8...
d6 {[%clk 0:02:57]} 9. a3 {[%clk 0:03:00.8]} 9... Na5 {[%clk 0:02:55.3]} 10. Ba2
{[%clk 0:03:01]} 10... c5 {[%clk 0:02:56]} 11. Nd5 {[%clk 0:03:00.2]} 11... Be6
{[%clk 0:02:47.1]} 12. b4 {[%clk 0:02:56.4]} 12... cxb4 {[%clk 0:02:22.6]} 13.
axb4 {[%clk 0:02:57.3]} 13... Nc6 {[%clk 0:02:22.2]} 14. c3 {[%clk 0:02:54.5]}
14... Re8 {[%clk 0:02:10.7]} 15. Be3 {[%clk 0:02:48.1]} 15... Bxd5 {[%clk
0:02:04]} 16. exd5 {[%clk 0:02:43.9]} 16... Nb8 {[%clk 0:02:04.4]} 17. Bb3
{[%clk 0:02:34.5]} 17... Nbd7 {[%clk 0:02:02.8]} 18. c4 {[%clk 0:02:11.3]} 18...
Qb8 {[%clk 0:01:28.6]} 19. Bd2 {[%clk 0:01:28.9]} 19... e4 {[%clk 0:01:07.1]}
20. Nd4 {[%clk 0:01:10]} 20... exd3 {[%clk 0:01:00.7]} 21. Nc6 {[%clk
0:00:58.7]} 21... Qb7 {[%clk 0:00:59.4]} 22. Bc3 {[%clk 0:00:45.3]} 22... Ne4
{[%clk 0:00:35]} 23. Bxg7 {[%clk 0:00:29.3]} 23... Kxg7 {[%clk 0:00:20.2]} 24.
Qg4+ {[%clk 0:00:28.8]} 24... Bg5 {[%clk 0:00:18.6]} 25. f4 {[%clk 0:00:09.6]}
25... Ndf6 {[%clk 0:00:17.9]} 26. Qf3 {[%clk 0:00:07]} 26... Bh6 {[%clk
0:00:14.1]} 27. Qxd3 {[%clk 0:00:05.1]} 27... bxc4 {[%clk 0:00:11.7]} 28. Bxc4
{[%clk 0:00:05.1]} 28... Qb6+ {[%clk 0:00:11.6]} 29. Nd4 {[%clk 0:00:04.4]}
29... Kh8 {[%clk 0:00:09.3]} 30. Kh1 {[%clk 0:00:04.5]} 30... Bg7 {[%clk
0:00:09.8]} 31. Rad1 {[%clk 0:00:04.1]} 31... Ng4 {[%clk 0:00:09.8]} 32. h3
{[%clk 0:00:02.4]} 32... Ngf2+ {[%clk 0:00:09.9]} 0-1

[Event "Early-Titled-Tuesday-Blitz-February-13-2024"]
[Site "Chess.com"]
[Date "2024.02.13"]
[Round "4"]
[White "db-banana"]
[Black "campochess"]
[Result "1-0"]
[WhiteElo "2491"]
[BlackElo "2129"]
[TimeControl "180+1"]
[EndTime "8:42:49 PST"]
[Termination "db-banana won by resignation"]

1. e4 {[%clk 0:03:00.9]} 1... c5 {[%clk 0:02:49.7]} 2. Nf3 {[%clk 0:02:56.7]}
2... Nc6 {[%clk 0:02:49.5]} 3. d4 {[%clk 0:02:56.6]} 3... cxd4 {[%clk
0:02:49.4]} 4. Nxd4 {[%clk 0:02:57.5]} 4... e5 {[%clk 0:02:48.8]} 5. Nb5 {[%clk
0:02:57.4]} 5... a6 {[%clk 0:02:49]} 6. N5a3 {[%clk 0:02:50.4]} 6... Bc5 {[%clk
0:02:48.5]} 7. c3 {[%clk 0:02:39.6]} 7... Qh4 {[%clk 0:02:47.3]} 8. Qf3 {[%clk
0:02:03.3]} 8... Nf6 {[%clk 0:02:44]} 9. b4 {[%clk 0:01:53]} 9... Ba7 {[%clk
0:02:38.6]} 10. Bd3 {[%clk 0:01:39.5]} 10... d6 {[%clk 0:02:34.9]} 11. Nc4
{[%clk 0:01:36.3]} 11... O-O {[%clk 0:02:18.4]} 12. g3 {[%clk 0:01:18.1]} 12...
Qh3 {[%clk 0:02:13.1]} 13. Ne3 {[%clk 0:01:12]} 13... d5 {[%clk 0:02:06.7]} 14.
Nxd5 {[%clk 0:01:02.4]} 14... Nxd5 {[%clk 0:02:04.5]} 15. exd5 {[%clk
0:01:02.1]} 15... e4 {[%clk 0:02:00.9]} 16. Qxe4 {[%clk 0:00:46.7]} 16... f5
{[%clk 0:01:51.4]} 17. Qf4 {[%clk 0:00:26.5]} 17... Qg2 {[%clk 0:01:43.2]} 18.
Rf1 {[%clk 0:00:26.9]} 18... Re8+ {[%clk 0:01:32.8]} 19. Be3 {[%clk 0:00:26.5]}
19... Bxe3 {[%clk 0:01:30.7]} 20. fxe3 {[%clk 0:00:25.6]} 20... Qb2 {[%clk
0:01:28.4]} 21. dxc6 {[%clk 0:00:22.6]} 21... Qxa1 {[%clk 0:01:21.1]} 22. Kf2
{[%clk 0:00:10.6]} 22... Qxa2+ {[%clk 0:01:19.5]} 23. Kg1 {[%clk 0:00:10.3]}
23... bxc6 {[%clk 0:01:16.8]} 24. Bc4+ {[%clk 0:00:10.3]} 24... Be6 {[%clk
0:01:07.8]} 25. Bxa2 {[%clk 0:00:09.9]} 25... Bxa2 {[%clk 0:01:07.4]} 26. Nd2
{[%clk 0:00:10.2]} 26... Be6 {[%clk 0:01:01.7]} 27. Nf3 {[%clk 0:00:09.4]} 27...
Rad8 {[%clk 0:00:55.8]} 28. Nd4 {[%clk 0:00:09.5]} 28... Bd7 {[%clk 0:00:52.2]}
29. Nxf5 {[%clk 0:00:06.7]} 29... Kh8 {[%clk 0:00:51.5]} 30. Qg5 {[%clk
0:00:06.3]} 30... Bxf5 {[%clk 0:00:47.3]} 31. Qxf5 {[%clk 0:00:06.9]} 31... h6
{[%clk 0:00:44.3]} 32. h4 {[%clk 0:00:04.6]} 32... Rxe3 {[%clk 0:00:42.8]} 33.
Qc5 {[%clk 0:00:03.2]} 33... Rxg3+ {[%clk 0:00:39.3]} 34. Kh2 {[%clk 0:00:03.1]}
34... Rgd3 {[%clk 0:00:22.1]} 35. Rf8+ {[%clk 0:00:03.6]} 35... Kh7 {[%clk
0:00:20.8]} 36. Qf5+ {[%clk 0:00:03.7]} 1-0